[Event "Titled Tuesday Blitz June 20 Late 2023"]
[White "Prieto Aranguren, Alain"]
[Black "Powell, Paul"]
[WhiteFideId "2268906"]
[BlackFideId "2005840"]
[WhiteElo "2209"]
[BlackElo "2165"]
[Result "1-0"]
[Round "6"]
[TimeControl "180+2"]
[Date "2023.06.20"]
[WhiteClock "0:00:04"]
[BlackClock "0:00:00"]
[Board "144"]

1. e4 {[%clk 0:02:40]}  c5 {[%clk 0:02:59]} 2. Nf3 {[%clk 0:02:39]}  d6 {[%clk 0:02:59]} 3. Bb5+ {[%clk 0:02:37]}  Bd7 {[%clk 0:02:59]} 4. Bxd7+ {[%clk 0:02:37]}  Nxd7 {[%clk 0:02:59]} 5. O-O {[%clk 0:02:37]}  g6 {[%clk 0:02:59]} 6. c3 {[%clk 0:02:37]}  Ngf6 {[%clk 0:02:58]} 7. Re1 {[%clk 0:02:36]}  Bg7 {[%clk 0:02:58]} 8. d4 {[%clk 0:02:36]}  cxd4 {[%clk 0:02:54]} 9. cxd4 {[%clk 0:02:35]}  O-O {[%clk 0:02:54]} 10. Nc3 {[%clk 0:02:35]}  Rc8 {[%clk 0:02:52]} 11. e5 {[%clk 0:02:28]}  dxe5 {[%clk 0:02:39]} 12. dxe5 {[%clk 0:02:27]}  Ng4 {[%clk 0:02:39]} 13. e6 {[%clk 0:02:26]}  Nde5 {[%clk 0:02:27]} 14. exf7+ {[%clk 0:02:20]}  Rxf7 {[%clk 0:02:22]} 15. Qxd8+ {[%clk 0:02:16]}  Rxd8 {[%clk 0:02:20]} 16. Nxe5 {[%clk 0:02:14]}  Nxe5 {[%clk 0:02:18]} 17. Be3 {[%clk 0:02:08]}  Nc4 {[%clk 0:02:15]} 18. Rad1 {[%clk 0:01:54]}  Rxd1 {[%clk 0:02:06]} 19. Rxd1 {[%clk 0:01:50]}  Nxb2 {[%clk 0:02:05]} 20. Rd8+ {[%clk 0:01:50]}  Rf8 {[%clk 0:02:05]} 21. Rxf8+ {[%clk 0:01:50]}  Kxf8 {[%clk 0:02:04]} 22. Nd5 {[%clk 0:01:46]}  a6 {[%clk 0:01:59]} 23. Nf4 {[%clk 0:01:39]}  Kf7 {[%clk 0:01:54]} 24. h4 {[%clk 0:01:38]}  Nc4 {[%clk 0:01:52]} 25. Bc5 {[%clk 0:01:37]}  e5 {[%clk 0:01:48]} 26. Nd5 {[%clk 0:01:35]}  Ke6 {[%clk 0:01:44]} 27. Nc3 {[%clk 0:01:32]}  Bh6 {[%clk 0:01:33]} 28. h5 {[%clk 0:01:29]}  Bc1 {[%clk 0:01:27]} 29. Kf1 {[%clk 0:01:24]}  b5 {[%clk 0:01:25]} 30. Ke2 {[%clk 0:01:23]}  Bb2 {[%clk 0:01:18]} 31. Kd3 {[%clk 0:01:21]}  Bxc3 {[%clk 0:01:14]} 32. Kxc3 {[%clk 0:01:21]}  Kd5 {[%clk 0:01:14]} 33. Kb4 {[%clk 0:01:10]}  Kc6 {[%clk 0:01:10]} 34. Bf8 {[%clk 0:01:03]}  Nd2 {[%clk 0:01:06]} 35. Ka5 {[%clk 0:00:57]}  Kb7 {[%clk 0:01:05]} 36. f3 {[%clk 0:00:55]}  Nc4+ {[%clk 0:01:02]} 37. Kb4 {[%clk 0:00:54]}  Ne3 {[%clk 0:01:02]} 38. g4 {[%clk 0:00:51]}  Kc6 {[%clk 0:00:58]} 39. Kc3 {[%clk 0:00:42]}  Kd5 {[%clk 0:00:52]} 40. Kd3 {[%clk 0:00:40]}  Nc4 {[%clk 0:00:51]} 41. hxg6 {[%clk 0:00:36]}  hxg6 {[%clk 0:00:50]} 42. Be7 {[%clk 0:00:30]}  Na5 {[%clk 0:00:46]} 43. Bf8 {[%clk 0:00:26]}  Nc6 {[%clk 0:00:45]} 44. Ke3 {[%clk 0:00:20]}  Nd4 {[%clk 0:00:40]} 45. Be7 {[%clk 0:00:19]}  Ne6 {[%clk 0:00:35]} 46. Kd3 {[%clk 0:00:18]}  Nf4+ {[%clk 0:00:33]} 47. Ke3 {[%clk 0:00:18]}  Ne6 {[%clk 0:00:33]} 48. Kd3 {[%clk 0:00:18]}  Nc7 {[%clk 0:00:30]} 49. Ke3 {[%clk 0:00:17]}  Na8 {[%clk 0:00:26]} 50. Bf8 {[%clk 0:00:15]}  Nb6 {[%clk 0:00:26]} 51. Kd3 {[%clk 0:00:15]}  Nc4 {[%clk 0:00:26]} 52. Be7 {[%clk 0:00:15]}  a5 {[%clk 0:00:26]} 53. Bf8 {[%clk 0:00:14]}  b4 {[%clk 0:00:26]} 54. Be7 {[%clk 0:00:12]}  Nb6 {[%clk 0:00:19]} 55. Ke3 {[%clk 0:00:11]}  Na4 {[%clk 0:00:19]} 56. Kd3 {[%clk 0:00:08]}  Nc3 {[%clk 0:00:16]} 57. a3 {[%clk 0:00:08]}  Nb5 {[%clk 0:00:03]} 58. axb4 {[%clk 0:00:08]}  a4 {[%clk 0:00:03]} 59. Kc2 {[%clk 0:00:05]}  Kc4 {[%clk 0:00:00]} 60. Bf6 {[%clk 0:00:04]} 1-0


[Site "https://www.chess.com"]

[Event "Titled Tuesday Blitz June 20 Late 2023"]
[White "Sainz Aguirre, Ignacio"]
[Black "Vifleemskaia, Svetlana"]
[WhiteFideId "5101727"]
[BlackFideId "4129490"]
[WhiteElo "1889"]
[BlackElo "1930"]
[Result "0-1"]
[Round "6"]
[TimeControl "180+2"]
[Date "2023.06.20"]
[WhiteClock "0:00:06"]
[BlackClock "0:01:14"]
[Board "148"]

1. e4 {[%clk 0:03:00]}  e5 {[%clk 0:02:59]} 2. Nf3 {[%clk 0:03:00]}  Nc6 {[%clk 0:02:58]} 3. Bc4 {[%clk 0:03:00]}  Nf6 {[%clk 0:02:58]} 4. d3 {[%clk 0:02:52]}  Be7 {[%clk 0:02:57]} 5. a4 {[%clk 0:02:49]}  O-O {[%clk 0:02:58]} 6. a5 {[%clk 0:02:49]}  a6 {[%clk 0:02:58]} 7. O-O {[%clk 0:02:47]}  d5 {[%clk 0:02:58]} 8. exd5 {[%clk 0:02:46]}  Nxd5 {[%clk 0:02:59]} 9. Re1 {[%clk 0:02:40]}  Bf6 {[%clk 0:02:58]} 10. Nbd2 {[%clk 0:02:32]}  Bg4 {[%clk 0:02:52]} 11. Ne4 {[%clk 0:02:30]}  Nd4 {[%clk 0:02:49]} 12. Bxd5 {[%clk 0:02:25]}  Qxd5 {[%clk 0:02:47]} 13. c3 {[%clk 0:01:42]}  Bxf3 {[%clk 0:02:33]} 14. gxf3 {[%clk 0:01:36]}  Ne6 {[%clk 0:02:26]} 15. Kh1 {[%clk 0:01:20]}  Be7 {[%clk 0:02:23]} 16. Rg1 {[%clk 0:01:16]}  f5 {[%clk 0:02:18]} 17. Ng3 {[%clk 0:01:08]}  Rad8 {[%clk 0:02:07]} 18. Rg2 {[%clk 0:00:27]}  Qxd3 {[%clk 0:01:59]} 19. Qb3 {[%clk 0:00:18]}  Qd5 {[%clk 0:01:56]} 20. Qc2 {[%clk 0:00:17]}  Qd1+ {[%clk 0:01:56]} 21. Qxd1 {[%clk 0:00:17]}  Rxd1+ {[%clk 0:01:56]} 22. Rg1 {[%clk 0:00:17]}  Rxg1+ {[%clk 0:01:46]} 23. Kxg1 {[%clk 0:00:17]}  g6 {[%clk 0:01:47]} 24. Bd2 {[%clk 0:00:15]}  Rd8 {[%clk 0:01:47]} 25. Be1 {[%clk 0:00:15]}  Nf4 {[%clk 0:01:40]} 26. Kf1 {[%clk 0:00:14]}  Kf7 {[%clk 0:01:37]} 27. b4 {[%clk 0:00:12]}  c5 {[%clk 0:01:32]} 28. bxc5 {[%clk 0:00:11]}  Bxc5 {[%clk 0:01:32]} 29. Rb1 {[%clk 0:00:11]}  Rd7 {[%clk 0:01:32]} 30. Rb3 {[%clk 0:00:10]}  Ke6 {[%clk 0:01:31]} 31. Ne2 {[%clk 0:00:10]}  Nd3 {[%clk 0:01:26]} 32. Bd2 {[%clk 0:00:09]}  Nxf2 {[%clk 0:01:16]} 33. f4 {[%clk 0:00:06]}  Rxd2 {[%clk 0:01:14]} 0-1


[Site "https://www.chess.com"]

[Event "Titled Tuesday Blitz June 20 Late 2023"]
[White "Sarkar, Justin"]
[Black "Gyulamiryan-koryun"]
[WhiteFideId "2010011"]
[WhiteElo "2151"]
[BlackElo "1874"]
[Result "1/2-1/2"]
[Round "6"]
[TimeControl "180+2"]
[Date "2023.06.20"]
[WhiteClock "0:00:03"]
[BlackClock "0:00:20"]
[Board "150"]

1. e4 {[%clk 0:02:51]}  e5 {[%clk 0:02:53]} 2. f4 {[%clk 0:02:51]}  exf4 {[%clk 0:02:53]} 3. Nf3 {[%clk 0:02:50]}  d6 {[%clk 0:02:53]} 4. Bc4 {[%clk 0:02:48]}  h6 {[%clk 0:02:52]} 5. d4 {[%clk 0:02:36]}  g5 {[%clk 0:02:52]} 6. h4 {[%clk 0:02:26]}  Bg7 {[%clk 0:02:50]} 7. hxg5 {[%clk 0:02:22]}  hxg5 {[%clk 0:02:51]} 8. Rxh8 {[%clk 0:02:22]}  Bxh8 {[%clk 0:02:51]} 9. c3 {[%clk 0:02:05]}  c6 {[%clk 0:02:46]} 10. Kd2 {[%clk 0:00:51]}  g4 {[%clk 0:02:43]} 11. Qh1 {[%clk 0:00:46]}  Qf6 {[%clk 0:02:34]} 12. Ne1 {[%clk 0:00:30]}  Bg7 {[%clk 0:02:29]} 13. Kc2 {[%clk 0:00:24]}  b5 {[%clk 0:02:26]} 14. Bb3 {[%clk 0:00:14]}  Be6 {[%clk 0:02:18]} 15. Nd3 {[%clk 0:00:11]}  Bxb3+ {[%clk 0:02:12]} 16. axb3 {[%clk 0:00:11]}  f3 {[%clk 0:02:11]} 17. gxf3 {[%clk 0:00:10]}  Qxf3 {[%clk 0:02:10]} 18. Qxf3 {[%clk 0:00:09]}  gxf3 {[%clk 0:02:10]} 19. Bf4 {[%clk 0:00:09]}  Kd7 {[%clk 0:02:08]} 20. Nd2 {[%clk 0:00:08]}  Bh6 {[%clk 0:02:03]} 21. Rf1 {[%clk 0:00:05]}  Bxf4 {[%clk 0:02:01]} 22. Nxf4 {[%clk 0:00:05]}  f6 {[%clk 0:02:01]} 23. Rxf3 {[%clk 0:00:05]}  a5 {[%clk 0:01:47]} 24. Rg3 {[%clk 0:00:05]}  Ne7 {[%clk 0:01:44]} 25. Rg7 {[%clk 0:00:05]}  Na6 {[%clk 0:01:38]} 26. Ng6 {[%clk 0:00:05]}  Re8 {[%clk 0:01:37]} 27. Nf3 {[%clk 0:00:05]}  Ke6 {[%clk 0:01:32]} 28. Nf4+ {[%clk 0:00:05]}  Kd7 {[%clk 0:01:31]} 29. Nh4 {[%clk 0:00:04]}  Kc8 {[%clk 0:01:20]} 30. Rf7 {[%clk 0:00:03]}  d5 {[%clk 0:01:06]} 31. exd5 {[%clk 0:00:03]}  Nxd5 {[%clk 0:01:03]} 32. Nxd5 {[%clk 0:00:02]}  cxd5 {[%clk 0:01:04]} 33. Rxf6 {[%clk 0:00:03]}  Nc7 {[%clk 0:00:58]} 34. Kd2 {[%clk 0:00:03]}  Rh8 {[%clk 0:00:58]} 35. Nf3 {[%clk 0:00:03]}  Rh3 {[%clk 0:00:53]} 36. Ke3 {[%clk 0:00:03]}  a4 {[%clk 0:00:53]} 37. bxa4 {[%clk 0:00:02]}  bxa4 {[%clk 0:00:53]} 38. Rc6 {[%clk 0:00:02]}  Kb7 {[%clk 0:00:52]} 39. Rc5 {[%clk 0:00:02]}  Kb6 {[%clk 0:00:45]} 40. Kf4 {[%clk 0:00:02]}  Ne6+ {[%clk 0:00:43]} 41. Kg4 {[%clk 0:00:02]}  Rxf3 {[%clk 0:00:32]} 42. Kxf3 {[%clk 0:00:01]}  Nxc5 {[%clk 0:00:32]} 43. dxc5+ {[%clk 0:00:02]}  Kxc5 {[%clk 0:00:33]} 44. Ke3 {[%clk 0:00:02]}  Kc4 {[%clk 0:00:33]} 45. Kd2 {[%clk 0:00:02]}  Kb3 {[%clk 0:00:32]} 46. Kc1 {[%clk 0:00:02]}  a3 {[%clk 0:00:30]} 47. bxa3 {[%clk 0:00:02]}  Kxc3 {[%clk 0:00:22]} 48. Kd1 {[%clk 0:00:02]}  d4 {[%clk 0:00:22]} 49. Kc1 {[%clk 0:00:02]}  d3 {[%clk 0:00:21]} 50. Kd1 {[%clk 0:00:03]}  Kb3 {[%clk 0:00:20]} 51. Kd2 {[%clk 0:00:03]}  Kc4 {[%clk 0:00:20]} 52. a4 {[%clk 0:00:03]}  Kd4 {[%clk 0:00:19]} 53. a5 {[%clk 0:00:03]}  Kc5 {[%clk 0:00:19]} 54. Kxd3 {[%clk 0:00:03]}  Kb5 {[%clk 0:00:20]} 55. Kd4 {[%clk 0:00:03]}  Kxa5 {[%clk 0:00:20]} 1/2-1/2


[Site "https://www.chess.com"]

[Event "Titled Tuesday Blitz June 20 Late 2023"]
[White "Vargas, Mauricio"]
[Black "Schut, Han"]
[WhiteFideId "4404572"]
[BlackFideId "1005561"]
[WhiteElo "1986"]
[BlackElo "2024"]
[Result "0-1"]
[Round "6"]
[TimeControl "180+2"]
[Date "2023.06.20"]
[WhiteClock "0:00:00"]
[BlackClock "0:00:02"]
[Board "151"]

1. e4 {[%clk 0:01:47]}  c5 {[%clk 0:02:56]} 2. Nc3 {[%clk 0:01:46]}  Nc6 {[%clk 0:02:56]} 3. f4 {[%clk 0:01:47]}  g6 {[%clk 0:02:56]} 4. Nf3 {[%clk 0:01:45]}  Bg7 {[%clk 0:02:57]} 5. Bb5 {[%clk 0:01:46]}  Nd4 {[%clk 0:02:57]} 6. Bf1 {[%clk 0:01:45]}  e6 {[%clk 0:02:55]} 7. d3 {[%clk 0:01:45]}  Ne7 {[%clk 0:02:55]} 8. g3 {[%clk 0:01:45]}  O-O {[%clk 0:02:54]} 9. Bg2 {[%clk 0:01:45]}  d5 {[%clk 0:02:53]} 10. e5 {[%clk 0:01:45]}  Nef5 {[%clk 0:02:51]} 11. O-O {[%clk 0:01:43]}  h5 {[%clk 0:02:50]} 12. Ne2 {[%clk 0:01:41]}  Qb6 {[%clk 0:02:34]} 13. c3 {[%clk 0:01:41]}  Nxe2+ {[%clk 0:02:27]} 14. Qxe2 {[%clk 0:01:40]}  Bd7 {[%clk 0:02:28]} 15. a4 {[%clk 0:01:36]}  Qa6 {[%clk 0:02:21]} 16. b3 {[%clk 0:01:30]}  b5 {[%clk 0:02:18]} 17. a5 {[%clk 0:01:23]}  c4 {[%clk 0:01:56]} 18. b4 {[%clk 0:01:17]}  cxd3 {[%clk 0:01:55]} 19. Qxd3 {[%clk 0:01:16]}  Rac8 {[%clk 0:01:53]} 20. Bd2 {[%clk 0:01:14]}  Rc4 {[%clk 0:01:46]} 21. h3 {[%clk 0:01:09]}  Rfc8 {[%clk 0:01:43]} 22. g4 {[%clk 0:01:09]}  hxg4 {[%clk 0:01:42]} 23. hxg4 {[%clk 0:01:08]}  Nh6 {[%clk 0:01:39]} 24. Bh3 {[%clk 0:00:57]}  Qc6 {[%clk 0:01:26]} 25. Rf2 {[%clk 0:00:54]}  Re4 {[%clk 0:01:03]} 26. Ng5 {[%clk 0:00:46]}  Qc4 {[%clk 0:00:55]} 27. Bf1 {[%clk 0:00:36]}  Nxg4 {[%clk 0:00:45]} 28. Nxe4 {[%clk 0:00:30]}  Qxe4 {[%clk 0:00:29]} 29. Qxe4 {[%clk 0:00:23]}  dxe4 {[%clk 0:00:30]} 30. Re2 {[%clk 0:00:21]}  Bc6 {[%clk 0:00:28]} 31. Bg2 {[%clk 0:00:20]}  e3 {[%clk 0:00:19]} 32. Bxc6 {[%clk 0:00:16]}  Rxc6 {[%clk 0:00:18]} 33. Bxe3 {[%clk 0:00:16]}  Rxc3 {[%clk 0:00:19]} 34. Bc5 {[%clk 0:00:14]}  Rc4 {[%clk 0:00:16]} 35. Rd1 {[%clk 0:00:11]}  a6 {[%clk 0:00:10]} 36. Rg2 {[%clk 0:00:11]}  Nh6 {[%clk 0:00:07]} 37. Rd8+ {[%clk 0:00:10]}  Kh7 {[%clk 0:00:07]} 38. Rd7 {[%clk 0:00:09]}  Rxf4 {[%clk 0:00:06]} 39. Rf2 {[%clk 0:00:07]}  Rxf2 {[%clk 0:00:03]} 40. Kxf2 {[%clk 0:00:07]}  Bxe5 {[%clk 0:00:04]} 41. Ra7 {[%clk 0:00:06]}  g5 {[%clk 0:00:03]} 42. Rxa6 {[%clk 0:00:06]}  Ng4+ {[%clk 0:00:01]} 43. Kg1 {[%clk 0:00:04]}  Kg6 {[%clk 0:00:01]} 44. Rb6 {[%clk 0:00:02]}  f5 {[%clk 0:00:02]} 45. Rxe6+ {[%clk 0:00:00]}  Kh5 {[%clk 0:00:02]} 0-1


[Site "https://www.chess.com"]

[Event "Titled Tuesday Blitz June 20 Late 2023"]
[White "Sala, Giulia"]
[Black "Grabs, Peter"]
[WhiteFideId "2840451"]
[BlackFideId "16203887"]
[WhiteElo "1769"]
[BlackElo "1670"]
[Result "1-0"]
[Round "6"]
[TimeControl "180+2"]
[Date "2023.06.20"]
[WhiteClock "0:01:36"]
[BlackClock "0:00:17"]
[Board "152"]

1. e4 {[%clk 0:03:00]}  e6 {[%clk 0:02:52]} 2. d4 {[%clk 0:03:00]}  d5 {[%clk 0:02:53]} 3. Nc3 {[%clk 0:03:01]}  Bb4 {[%clk 0:02:50]} 4. e5 {[%clk 0:03:00]}  c5 {[%clk 0:02:49]} 5. a3 {[%clk 0:03:01]}  Bxc3+ {[%clk 0:02:49]} 6. bxc3 {[%clk 0:03:01]}  Nc6 {[%clk 0:02:49]} 7. Qg4 {[%clk 0:02:57]}  Kf8 {[%clk 0:02:49]} 8. Bd2 {[%clk 0:02:51]}  Qa5 {[%clk 0:02:45]} 9. Nf3 {[%clk 0:02:49]}  Qa4 {[%clk 0:02:45]} 10. Ra2 {[%clk 0:02:45]}  Nge7 {[%clk 0:02:42]} 11. Bd3 {[%clk 0:02:41]}  c4 {[%clk 0:02:41]} 12. Be2 {[%clk 0:02:42]}  b5 {[%clk 0:02:31]} 13. O-O {[%clk 0:02:38]}  a5 {[%clk 0:02:28]} 14. Rb1 {[%clk 0:02:37]}  Rb8 {[%clk 0:02:26]} 15. Rbb2 {[%clk 0:02:34]}  Bd7 {[%clk 0:02:21]} 16. h4 {[%clk 0:02:34]}  h6 {[%clk 0:02:18]} 17. h5 {[%clk 0:02:32]}  Nf5 {[%clk 0:02:17]} 18. Nh4 {[%clk 0:02:32]}  Nxh4 {[%clk 0:02:16]} 19. Qxh4 {[%clk 0:02:33]}  Ne7 {[%clk 0:02:14]} 20. Qf4 {[%clk 0:02:27]}  Kg8 {[%clk 0:02:08]} 21. Be1 {[%clk 0:02:21]}  Kh7 {[%clk 0:02:04]} 22. Qxf7 {[%clk 0:02:18]}  Rbe8 {[%clk 0:01:58]} 23. Qf4 {[%clk 0:02:14]}  Rhf8 {[%clk 0:01:57]} 24. Qc1 {[%clk 0:02:14]}  Nc6 {[%clk 0:01:49]} 25. Qb1 {[%clk 0:02:10]}  Ne7 {[%clk 0:01:44]} 26. Rb4 {[%clk 0:02:07]}  axb4 {[%clk 0:01:41]} 27. axb4 {[%clk 0:02:08]}  Ra8 {[%clk 0:01:38]} 28. Rxa4 {[%clk 0:02:08]}  Rxa4 {[%clk 0:01:39]} 29. Qc1 {[%clk 0:02:01]}  Rfa8 {[%clk 0:01:34]} 30. Bg4 {[%clk 0:02:01]}  Ra1 {[%clk 0:01:32]} 31. Qe3 {[%clk 0:02:02]}  Rb1 {[%clk 0:01:30]} 32. Kh2 {[%clk 0:02:02]}  Raa1 {[%clk 0:01:29]} 33. Bd2 {[%clk 0:02:00]}  Rh1+ {[%clk 0:01:29]} 34. Kg3 {[%clk 0:02:00]}  Nf5+ {[%clk 0:01:25]} 35. Bxf5+ {[%clk 0:02:00]}  exf5 {[%clk 0:01:25]} 36. e6 {[%clk 0:02:01]}  Be8 {[%clk 0:01:15]} 37. Qe5 {[%clk 0:02:01]}  Rxh5 {[%clk 0:01:12]} 38. Kf3 {[%clk 0:01:56]}  g5 {[%clk 0:00:55]} 39. e7 {[%clk 0:01:42]}  g4+ {[%clk 0:00:40]} 40. Kf4 {[%clk 0:01:42]}  Rf1 {[%clk 0:00:38]} 41. Be3 {[%clk 0:01:42]}  Rh2 {[%clk 0:00:31]} 42. Qxf5+ {[%clk 0:01:39]}  Bg6 {[%clk 0:00:32]} 43. e8=Q {[%clk 0:01:36]}  Bxf5 {[%clk 0:00:27]} 44. Qf7+ {[%clk 0:01:36]}  Kh8 {[%clk 0:00:26]} 45. Kxf5 {[%clk 0:01:36]}  Rxg2 {[%clk 0:00:24]} 46. Kg6 {[%clk 0:01:37]}  Rfxf2 {[%clk 0:00:17]} 47. Qg7# {[%clk 0:01:36]} 1-0


[Site "https://www.chess.com"]

[Event "Titled Tuesday Blitz June 20 Late 2023"]
[White "Nunez V, Gustavo Eduardo"]
[Black "Alexikov, Alexander"]
[WhiteFideId "4403690"]
[BlackFideId "14103958"]
[WhiteElo "2168"]
[BlackElo "2186"]
[Result "1-0"]
[Round "6"]
[TimeControl "180+2"]
[Date "2023.06.20"]
[WhiteClock "0:00:04"]
[BlackClock "0:00:00"]
[Board "155"]

1. e4 {[%clk 0:02:45]}  c5 {[%clk 0:02:58]} 2. Nc3 {[%clk 0:02:46]}  Nc6 {[%clk 0:02:57]} 3. g3 {[%clk 0:02:46]}  d6 {[%clk 0:02:57]} 4. Bg2 {[%clk 0:02:47]}  g6 {[%clk 0:02:56]} 5. Nge2 {[%clk 0:02:48]}  Bg7 {[%clk 0:02:57]} 6. O-O {[%clk 0:02:49]}  e5 {[%clk 0:02:56]} 7. f4 {[%clk 0:02:48]}  Nge7 {[%clk 0:02:56]} 8. f5 {[%clk 0:02:37]}  gxf5 {[%clk 0:02:55]} 9. exf5 {[%clk 0:02:38]}  Bxf5 {[%clk 0:02:53]} 10. Nd5 {[%clk 0:02:33]}  Qd7 {[%clk 0:02:28]} 11. d3 {[%clk 0:02:18]}  Bg4 {[%clk 0:02:19]} 12. Qd2 {[%clk 0:01:53]}  Nxd5 {[%clk 0:02:03]} 13. Bxd5 {[%clk 0:01:54]}  f6 {[%clk 0:01:44]} 14. Nc3 {[%clk 0:01:43]}  O-O-O {[%clk 0:01:30]} 15. Ne4 {[%clk 0:01:35]}  Rdf8 {[%clk 0:01:13]} 16. c3 {[%clk 0:01:23]}  Bh3 {[%clk 0:01:06]} 17. Rf2 {[%clk 0:01:20]}  h5 {[%clk 0:01:05]} 18. b4 {[%clk 0:01:17]}  cxb4 {[%clk 0:00:55]} 19. cxb4 {[%clk 0:01:18]}  h4 {[%clk 0:00:49]} 20. b5 {[%clk 0:01:18]}  Nd4 {[%clk 0:00:47]} 21. a4 {[%clk 0:01:14]}  hxg3 {[%clk 0:00:43]} 22. hxg3 {[%clk 0:01:13]}  Bg4 {[%clk 0:00:40]} 23. Ba3 {[%clk 0:01:02]}  Nf3+ {[%clk 0:00:31]} 24. Rxf3 {[%clk 0:01:01]}  Bxf3 {[%clk 0:00:31]} 25. Qc3+ {[%clk 0:00:39]}  Kb8 {[%clk 0:00:31]} 26. Kf2 {[%clk 0:00:35]}  Bxe4 {[%clk 0:00:29]} 27. Bxe4 {[%clk 0:00:35]}  f5 {[%clk 0:00:29]} 28. Bf3 {[%clk 0:00:34]}  e4 {[%clk 0:00:28]} 29. Qb4 {[%clk 0:00:31]}  Bxa1 {[%clk 0:00:25]} 30. Bg2 {[%clk 0:00:28]}  Be5 {[%clk 0:00:22]} 31. b6 {[%clk 0:00:28]}  axb6 {[%clk 0:00:20]} 32. Qxb6 {[%clk 0:00:26]}  Qc6 {[%clk 0:00:20]} 33. Qb3 {[%clk 0:00:23]}  Ka7 {[%clk 0:00:14]} 34. a5 {[%clk 0:00:16]}  f4 {[%clk 0:00:11]} 35. Bxe4 {[%clk 0:00:15]}  fxg3+ {[%clk 0:00:11]} 36. Ke3 {[%clk 0:00:13]}  Bf4+ {[%clk 0:00:08]} 37. Kd4 {[%clk 0:00:11]}  d5 {[%clk 0:00:07]} 38. Bxd5 {[%clk 0:00:07]}  Qf6+ {[%clk 0:00:05]} 39. Kc4 {[%clk 0:00:06]}  Rc8+ {[%clk 0:00:04]} 40. Bc5+ {[%clk 0:00:06]}  Rxc5+ {[%clk 0:00:03]} 41. Kxc5 {[%clk 0:00:07]}  Rc8+ {[%clk 0:00:00]} 42. Kb5 {[%clk 0:00:04]} 1-0


[Site "https://www.chess.com"]

[Event "Titled Tuesday Blitz June 20 Late 2023"]
[White "De Souza, Cristiano Gomes"]
[Black "Antonio, Jorge Carlos"]
[WhiteFideId "2151758"]
[BlackFideId "113190"]
[WhiteElo "2068"]
[BlackElo "2247"]
[Result "1-0"]
[Round "6"]
[TimeControl "180+2"]
[Date "2023.06.20"]
[WhiteClock "0:00:37"]
[BlackClock "0:00:11"]
[Board "156"]

1. d4 {[%clk 0:02:59]}  d5 {[%clk 0:02:59]} 2. c4 {[%clk 0:02:51]}  c6 {[%clk 0:02:59]} 3. Nf3 {[%clk 0:02:48]}  Nf6 {[%clk 0:02:59]} 4. Nc3 {[%clk 0:02:48]}  g6 {[%clk 0:02:59]} 5. Bf4 {[%clk 0:02:47]}  Bg7 {[%clk 0:02:59]} 6. e3 {[%clk 0:02:47]}  O-O {[%clk 0:02:59]} 7. Rc1 {[%clk 0:02:47]}  Bf5 {[%clk 0:02:58]} 8. Qb3 {[%clk 0:02:46]}  Qb6 {[%clk 0:02:57]} 9. c5 {[%clk 0:02:45]}  Qxb3 {[%clk 0:02:56]} 10. axb3 {[%clk 0:02:46]}  Nbd7 {[%clk 0:02:50]} 11. b4 {[%clk 0:02:46]}  a6 {[%clk 0:02:49]} 12. Be2 {[%clk 0:02:44]}  Ne4 {[%clk 0:02:49]} 13. Nd2 {[%clk 0:02:42]}  Nxd2 {[%clk 0:02:48]} 14. Kxd2 {[%clk 0:02:42]}  Rfe8 {[%clk 0:02:48]} 15. f3 {[%clk 0:02:42]}  e5 {[%clk 0:02:48]} 16. dxe5 {[%clk 0:02:41]}  Nxe5 {[%clk 0:02:47]} 17. g4 {[%clk 0:02:41]}  Be6 {[%clk 0:02:42]} 18. Rhd1 {[%clk 0:02:31]}  Rad8 {[%clk 0:02:40]} 19. Ke1 {[%clk 0:02:30]}  f5 {[%clk 0:02:35]} 20. Bg5 {[%clk 0:02:28]}  Rc8 {[%clk 0:02:32]} 21. h3 {[%clk 0:02:19]}  fxg4 {[%clk 0:02:31]} 22. hxg4 {[%clk 0:02:18]}  Nf7 {[%clk 0:02:13]} 23. Bf4 {[%clk 0:02:14]}  Ne5 {[%clk 0:01:54]} 24. Kf2 {[%clk 0:02:13]}  Rf8 {[%clk 0:01:53]} 25. Kg3 {[%clk 0:02:10]}  Rce8 {[%clk 0:01:48]} 26. g5 {[%clk 0:02:01]}  Nf7 {[%clk 0:01:31]} 27. e4 {[%clk 0:01:53]}  dxe4 {[%clk 0:01:27]} 28. Nxe4 {[%clk 0:01:53]}  Bd5 {[%clk 0:01:25]} 29. Bd3 {[%clk 0:01:31]}  Bxb2 {[%clk 0:01:23]} 30. Rc2 {[%clk 0:01:29]}  Be5 {[%clk 0:01:22]} 31. Bxe5 {[%clk 0:01:26]}  Nxe5 {[%clk 0:01:22]} 32. Nf6+ {[%clk 0:01:26]}  Kg7 {[%clk 0:01:18]} 33. Nxe8+ {[%clk 0:01:23]}  Rxe8 {[%clk 0:01:18]} 34. Re2 {[%clk 0:01:20]}  Kf7 {[%clk 0:01:05]} 35. f4 {[%clk 0:01:13]}  Nxd3 {[%clk 0:00:51]} 36. Rxe8 {[%clk 0:01:11]}  Kxe8 {[%clk 0:00:49]} 37. Rxd3 {[%clk 0:01:10]}  Ke7 {[%clk 0:00:49]} 38. Re3+ {[%clk 0:01:09]}  Kf7 {[%clk 0:00:48]} 39. Re5 {[%clk 0:01:02]}  Be6 {[%clk 0:00:48]} 40. Kf3 {[%clk 0:00:54]}  Bf5 {[%clk 0:00:47]} 41. Ke3 {[%clk 0:00:54]}  Be6 {[%clk 0:00:45]} 42. Kd4 {[%clk 0:00:51]}  Bf5 {[%clk 0:00:42]} 43. Rxf5+ {[%clk 0:00:48]}  gxf5 {[%clk 0:00:41]} 44. Ke5 {[%clk 0:00:49]}  Kg6 {[%clk 0:00:38]} 45. Ke6 {[%clk 0:00:49]}  h6 {[%clk 0:00:30]} 46. gxh6 {[%clk 0:00:48]}  Kxh6 {[%clk 0:00:30]} 47. Kxf5 {[%clk 0:00:48]}  Kg7 {[%clk 0:00:31]} 48. Ke6 {[%clk 0:00:48]}  Kf8 {[%clk 0:00:18]} 49. Kf6 {[%clk 0:00:47]}  Ke8 {[%clk 0:00:16]} 50. f5 {[%clk 0:00:47]}  Kd7 {[%clk 0:00:16]} 51. Kf7 {[%clk 0:00:46]}  Kc7 {[%clk 0:00:17]} 52. Ke7 {[%clk 0:00:43]}  b6 {[%clk 0:00:18]} 53. f6 {[%clk 0:00:42]}  bxc5 {[%clk 0:00:17]} 54. bxc5 {[%clk 0:00:43]}  a5 {[%clk 0:00:17]} 55. f7 {[%clk 0:00:43]}  Kb7 {[%clk 0:00:17]} 56. f8=Q {[%clk 0:00:42]}  Ka6 {[%clk 0:00:18]} 57. Kd7 {[%clk 0:00:41]}  Kb5 {[%clk 0:00:19]} 58. Kd6 {[%clk 0:00:40]}  a4 {[%clk 0:00:19]} 59. Qb8+ {[%clk 0:00:38]}  Kc4 {[%clk 0:00:19]} 60. Kxc6 {[%clk 0:00:38]}  a3 {[%clk 0:00:19]} 61. Qb5+ {[%clk 0:00:38]}  Kc3 {[%clk 0:00:19]} 62. Kb6 {[%clk 0:00:38]}  a2 {[%clk 0:00:19]} 63. Qa5+ {[%clk 0:00:37]}  Kb2 {[%clk 0:00:18]} 64. c6 {[%clk 0:00:37]}  a1=Q {[%clk 0:00:14]} 65. Qxa1+ {[%clk 0:00:36]}  Kxa1 {[%clk 0:00:11]} 66. c7 {[%clk 0:00:37]} 1-0


[Site "https://www.chess.com"]